bitfinex-derivatives/quotes_SOLF0:USTF0_20250416
["timestamp","ask_amount","ask_price","bid_price","bid_amount"]
[1744767403722,0.06110588,125.63,125.58,621.01820749]
[1744767403923,8.02170588,125.63,125.6,7.962]
[1744767404625,0.06110588,125.63,125.6,7.962]
[1744767406327,0.06110588,125.63,125.61,7.9616]
[1744767406623,0.06110588,125.63,125.58,621.01820749]
[1744767406925,2.1085,125.69,125.6,17.67820749]
[1744767407121,7.9604,125.64,125.61,31.3]
[1744767407320,31.3,125.67,125.58,603.34]
[1744767407518,31.3,125.67,125.6,7.9621]
[1744767407726,7.9602,125.64,125.6,7.9621]
[1744767408027,0.05459555,125.63,125.61,0.05163559]
[1744767408927,8.01529555,125.63,125.61,0.05163559]
[1744767409123,0.05459555,125.63,125.61,0.05163559]
[1744767409620,0.05459555,125.63,125.58,39.2632]
[1744767409824,2.22649555,125.63,125.58,7.9632]
[1744767410023,7.9634,125.59,125.55,31.32]
[1744767410223,31.32,125.61,125.55,31.32]
[1744767410722,0.05757692,125.59,125.55,31.32]
[1744767411725,0.05757692,125.59,125.57,7.9642]
[1744767411930,0.05757692,125.59,125.55,31.32]
[1744767412232,0.05757692,125.59,125.57,7.9637]
[1744767412731,0.05757692,125.59,125.58,7.9636]
[1744767413030,0.05757692,125.59,125.55,31.32]
[1744767413226,0.05757692,125.59,125.57,7.9639]
[1744767413428,0.05757692,125.59,125.55,31.32]
[1744767413628,0.05757692,125.59,125.56,17.67820749]
[1744767413825,0.05757692,125.59,125.58,7.9636]
[1744767414627,7.692e-05,125.59,125.58,7.9636]
[1744767414835,7.692e-05,125.59,125.58,39.2836]
[1744767420040,606.1674,125.66,125.63,7.9601]
[1744767420234,33.3274,125.66,125.63,7.9601]
[1744767420436,41.2863,125.66,125.63,7.9601]
[1744767420940,41.34706947,125.66,125.63,8.01101694]
[1744767421335,33.38816947,125.66,125.63,0.05091694]
[1744767421535,33.38816947,125.66,125.58,48.99820749]
[1744767421731,7.9601,125.64,125.61,7.9614]
[1744767421935,7.9601,125.64,125.58,48.99820749]
[1744767422337,7.9601,125.64,125.61,7.9611]
[1744767422536,8.01983889,125.64,125.61,7.9611]
[1744767422738,7.9606,125.63,125.61,7.9611]
[1744767422939,0.05973889,125.64,125.61,7.9611]
[1744767423240,0.05973889,125.64,125.58,48.99820749]
[1744767423738,8.01973889,125.64,125.62,7.961]
[1744767425638,0.05973889,125.64,125.58,31.32]
[1744767425844,31.32,125.63,125.55,31.32]
[1744767426142,0.05961788,125.6,125.55,31.32]
[1744767426344,0.05961788,125.6,125.58,7.9632]
[1744767426644,0.05961788,125.6,125.55,31.32]
[1744767426845,35.77581788,125.6,125.52,621.77820749]
[1744767427040,0.05043836,125.57,125.52,621.77820749]
[1744767428142,0.05043836,125.57,125.56,7.9649]
[1744767428343,8.01483836,125.57,125.52,621.77820749]
[1744767428547,0.05043836,125.57,125.52,621.77820749]
[1744767428946,0.05043836,125.57,125.55,7.9652]
[1744767430542,0.05043836,125.57,125.53,7.9665]
[1744767430844,0.05043836,125.57,125.52,621.77820749]
[1744767431643,31.37043836,125.57,125.5,17.67820749]
[1744767431836,31.37043836,125.57,125.47,31.32]
[1744767432041,0.05833413,125.53,125.47,31.32]
[1744767432241,7.968,125.52,125.48,7.9698]
[1744767432644,31.37833413,125.53,125.47,31.32]
[1744767432839,7.9689,125.5,125.46,7.9707]
[1744767433045,0.05318488,125.49,125.44,52.47300749]
[1744767433247,0.05318488,125.49,125.41,31.34]
[1744767433447,0.05788467,125.46,125.41,31.34]
[1744767434246,8.02918467,125.46,125.42,7.9735]
[1744767434441,8.02918467,125.46,125.41,31.34]
[1744767434645,0.05788467,125.46,125.41,49.01820749]
[1744767434947,0.05788467,125.46,125.43,17.67820749]
[1744767435346,0.05788467,125.46,125.41,49.01820749]
[1744767435547,0.05788467,125.46,125.41,31.34]
[1744767436147,0.05788467,125.46,125.43,7.9727]
[1744767436751,0.05788467,125.46,125.43,7.9725]
[1744767436946,0.05788467,125.46,125.41,49.01820749]
[1744767437449,8.02918467,125.46,125.42,7.9735]
[1744767438851,7.972,125.45,125.42,7.9735]
[1744767439145,0.05788467,125.46,125.41,31.34]
[1744767439354,2.18598467,125.46,125.41,31.34]
[1744767439542,19.86419216,125.46,125.35,49.01820749]
[1744767439742,0.05792714,125.42,125.35,49.01820749]
[1744767440151,0.05792714,125.42,125.37,17.67820749]
[1744767440652,0.05792714,125.42,125.39,7.9752]
[1744767441151,0.05792714,125.42,125.38,7.9761]
[1744767441456,0.05792714,125.42,125.35,49.01820749]
[1744767441646,8.03172714,125.42,125.39,7.9753]
[1744767442151,0.05792714,125.42,125.39,7.9753]
[1744767442847,0.05792714,125.42,125.37,31.34]
[1744767443146,0.05792714,125.42,125.34,31.36]
[1744767443352,0.05684033,125.39,125.34,7.9785]
[1744767443550,0.05684033,125.39,125.31,49.03820749]
[1744767443846,8.03526372,125.36,125.33,7.9792]
[1744767444448,0.05766372,125.36,125.33,7.9792]
[1744767444646,0.05766372,125.36,125.34,7.9789]
[1744767445654,0.05766372,125.36,125.35,7.9783]
[1744767450957,0.05766372,125.36,125.34,39.3385]
[1744767451157,0.05766372,125.36,125.34,31.36]
[1744767451657,0.05766372,125.36,125.35,7.9783]
[1744767455056,31.38,125.42,125.34,49.03820749]
[1744767455256,2.1603,125.43,125.38,11.15873255]
[1744767455452,10.1353,125.45,125.38,42.53873255]
[1744767455658,2.1327,125.47,125.42,11.15873255]
[1744767456058,0.05284615,125.46,125.44,7.9722]
[1744767456258,0.05284615,125.46,125.43,0.06103584]
[1744767456558,8.02434615,125.46,125.43,8.03383584]
[1744767456761,0.05284615,125.46,125.43,11.21976839]
[1744767457057,0.05284615,125.46,125.44,31.38]
[1744767457663,0.05284615,125.46,125.45,7.9719]
[1744767457864,31.36,125.51,125.44,49.21256069]
[1744767458458,7.9687,125.5,125.47,7.9702]
[1744767458663,31.36,125.51,125.44,49.21256069]
[1744767458864,0.05396104,125.49,125.46,0.05078906]
[1744767459058,8.02356104,125.49,125.46,0.05078906]
[1744767459264,0.05396104,125.49,125.46,0.05078906]
[1744767459861,31.36,125.48,125.41,31.36]
[1744767460063,7.9716,125.46,125.43,7.9728]
[1744767460565,10.0473,125.47,125.43,7.9728]
[1744767460760,10.0473,125.47,125.44,7.9724]
[1744767460965,0.05356805,125.46,125.44,0.05672326]
[1744767461766,0.05356805,125.46,125.44,8.02912326]
[1744767461966,0.05356805,125.46,125.44,0.05672326]
[1744767463066,8.02486805,125.46,125.44,0.05672326]
[1744767463367,0.05356805,125.46,125.44,0.05672326]
[1744767464268,0.05356805,125.46,125.45,7.9719]
[1744767464571,0.05356805,125.46,125.44,0.05672326]
[1744767464770,0.05356805,125.46,125.45,7.9719]
[1744767465669,0.05356805,125.46,125.44,39.38892326]
[1744767466671,0.05356805,125.46,125.45,7.9719]
[1744767466971,0.05356805,125.46,125.44,31.41672326]
[1744767467572,0.05356805,125.46,125.44,39.38892326]
[1744767467868,0.05356805,125.46,125.44,31.41672326]
[1744767468270,0.05356805,125.46,125.45,7.9719]
[1744767468667,0.05356805,125.46,125.44,39.38892326]
[1744767469668,0.05356805,125.46,125.45,7.9719]
[1744767471770,0.05356805,125.46,125.44,39.38892326]
[1744767471971,0.05356805,125.46,125.38,31.36]
[1744767472169,2.1927,125.46,125.38,31.36]
[1744767472371,7.9735,125.43,125.4,7.9746]
[1744767473073,8.02621206,125.43,125.4,7.99530466]
[1744767473275,7.9739,125.42,125.4,0.02070466]
[1744767473675,7.9739,125.42,125.4,7.99580466]
[1744767474977,7.9739,125.42,125.4,0.02070466]
[1744767475374,0.05271206,125.43,125.4,0.02070466]
[1744767476774,0.05271206,125.43,125.41,7.9744]
[1744767476975,0.05271206,125.43,125.4,0.02070466]
[1744767477579,0.05271206,125.43,125.41,7.9741]
[1744767477770,0.05271206,125.43,125.4,0.02070466]
[1744767478381,0.05271206,125.43,125.41,7.9744]
[1744767478680,0.05271206,125.43,125.4,0.02070466]
[1744767478880,0.05271206,125.43,125.41,7.974]
[1744767479379,0.05271206,125.43,125.41,7.9744]
[1744767480480,0.05271206,125.43,125.42,7.9738]
[1744767483677,1.206e-05,125.43,125.42,7.9738]
[1744767483979,4.1358,125.48,125.41,42.50969511]
[1744767484181,7.9714,125.46,125.41,42.50969511]
[1744767484377,31.36,125.47,125.39,11.14969511]
[1744767484580,42.50969511,125.47,125.38,31.36]
[1744767484883,0.05620266,125.44,125.43,7.9731]
[1744767485080,0.05489577,125.45,125.42,0.05345608]
[1744767485381,7.9732,125.43,125.42,0.05345608]
[1744767485580,11.20459088,125.45,125.37,31.36]
[1744767485780,11.14969511,125.45,125.37,31.36]
[1744767485980,11.14969511,125.45,125.39,7.9754]
[1744767486475,7.9739,125.42,125.39,7.9754]
[1744767486783,7.9739,125.42,125.4,7.9749]
[1744767487680,8.03255699,125.43,125.41,7.9744]
[1744767487885,0.05905699,125.43,125.37,42.50969511]
[1744767488285,0.05905699,125.43,125.42,7.9738]
[1744767488486,4.1358,125.48,125.41,11.14969511]
[1744767488686,4.1358,125.48,125.43,11.14969511]
[1744767488985,365.0,125.57,125.43,11.14969511]
[1744767488986,31.36,125.52,125.43,11.14969511]
[1744767489485,0.05408572,125.49,125.46,0.05226165]
[1744767489877,0.05408572,125.49,125.48,7.97]
[1744767490183,0.05408572,125.49,125.46,0.05226165]
[1744767490378,0.05408572,125.49,125.47,7.9703]
[1744767490585,0.05408572,125.49,125.46,0.05226165]
[1744767490784,7.97,125.48,125.46,8.02326165]
[1744767490986,0.05408572,125.49,125.46,0.05226165]
[1744767491188,11.20378083,125.49,125.46,0.05226165]
[1744767491388,11.14969511,125.47,125.39,31.36]
[1744767491588,2.19,125.46,125.39,31.36]
[1744767491789,4.4021,125.46,125.39,31.36]
[1744767491990,2.19,125.46,125.39,49.207498]
[1744767492291,31.36,125.49,125.41,17.847498]
[1744767492492,0.0588998,125.46,125.44,0.02675598]
[1744767493092,0.0588998,125.46,125.45,7.9719]
[1744767496290,31.34,125.57,125.45,57.167498]
[1744767496488,2.2036,125.54,125.47,17.847498]
[1744767496784,2.2036,125.54,125.48,31.34]
[1744767496987,2.2036,125.54,125.52,7.9674]
[1744767497196,2.2036,125.54,125.48,31.34]
[1744767497394,0.05660113,125.52,125.5,8.02602514]
[1744767497594,0.05660113,125.52,125.5,0.05772514]
[1744767497894,110.52838142,125.61,125.55,7.9655]
[1744767498096,2.0349,125.6,125.54,31.34]
[1744767498285,110.52838142,125.61,125.55,49.187498]
[1744767499091,110.52838142,125.61,125.57,17.90769603]
[1744767499291,110.52838142,125.61,125.58,31.34]
[1744767499594,110.52838142,125.61,125.6,7.9624]
[1744767499995,6.2567,125.66,125.6,7.9624]
[1744767500194,0.0560807,125.64,125.62,0.05102452]
[1744767501395,2.0981,125.7,125.63,17.847498]
[1744767501592,2.0981,125.7,125.64,31.34]
[1744767502403,0.05678822,125.68,125.66,0.05930855]
[1744767504306,0.05678822,125.68,125.67,7.9579]
[1744767504502,0.05678822,125.68,125.66,0.05930855]
[1744767504901,0.05678822,125.68,125.66,8.01750855]
[1744767505196,0.05678822,125.68,125.66,0.05930855]
[1744767506800,8.01438822,125.68,125.66,0.05930855]
[1744767508899,7.9579,125.67,125.66,0.05930855]
[1744767510905,49.147498,125.67,125.55,50.983898]
[1744767511104,17.847498,125.65,125.55,33.1364]
[1744767511405,35.5033,125.64,125.55,31.3]
[1744767511804,0.05721335,125.61,125.58,0.05468183]
[1744767512004,31.3,125.6,125.58,0.05468183]
[1744767513205,31.3,125.6,125.52,31.3]
[1744767513806,31.3,125.6,125.53,7.9665]
[1744767514105,31.3,125.6,125.5,606.5808]
[1744767514305,7.966,125.55,125.54,0.05198506]
[1744767514502,0.06101197,125.56,125.54,0.05198506]
[1744767514902,0.06101197,125.56,125.55,7.9655]
[1744767515403,0.06101197,125.56,125.54,0.05198506]
[1744767515603,0.06101197,125.56,125.54,8.01778506]
[1744767516104,0.06101197,125.56,125.55,7.9655]
[1744767518203,0.06101197,125.56,125.54,8.01788506]
[1744767518409,0.06101197,125.56,125.54,0.05198506]
[1744767518907,8.02621197,125.56,125.54,0.05198506]
[1744767519107,0.06101197,125.56,125.54,0.05198506]
[1744767519410,2.16671197,125.56,125.54,0.05198506]
[1744767519609,10.13191197,125.56,125.54,0.05198506]
[1744767519906,2.16671197,125.56,125.54,0.05198506]
[1744767520505,2.16671197,125.56,125.54,8.01778506]
[1744767521305,0.06101197,125.56,125.55,7.9655]
[1744767524111,0.06101197,125.56,125.54,8.01778506]
[1744767524313,0.06101197,125.56,125.54,0.05198506]
[1744767525016,0.06101197,125.56,125.55,7.9655]
[1744767526117,7.9626,125.6,125.57,7.964]
[1744767526517,31.32,125.61,125.53,31.32]
[1744767526714,7.9639,125.58,125.55,7.9651]
[1744767526908,2.1057,125.62,125.52,17.847498]
[1744767527107,31.3,125.61,125.52,17.847498]
[1744767527315,31.3,125.61,125.57,7.9639]
[1744767527316,0.05932749,125.58,125.57,7.9639]
[1744767529923,2.749e-05,125.58,125.57,7.9639]
[1744767530124,35.5033,125.64,125.62,7.9608]
[1744767530423,43.4634,125.64,125.58,17.847498]
[1744767530620,31.3,125.67,125.59,31.3]
[1744767530820,39.2581,125.67,125.64,7.9595]
[1744767531220,31.3,125.67,125.6,17.847498]
[1744767531420,39.31890385,125.67,125.64,0.06117472]
[1744767532019,31.36060385,125.67,125.64,0.06117472]
[1744767532526,7.9586,125.66,125.64,0.06117472]
[1744767533927,7.9592,125.65,125.64,0.06117472]
[1744767534229,0.06060385,125.67,125.64,0.06117472]
[1744767534926,8.01880385,125.67,125.64,0.06117472]
[1744767535428,8.01880385,125.67,125.64,8.02037472]
[1744767535622,0.06060385,125.67,125.64,0.06117472]
[1744767537625,8.01890385,125.67,125.64,0.06117472]
[1744767538328,7.9586,125.66,125.64,0.06117472]
[1744767538529,0.06060385,125.67,125.64,0.06117472]
[1744767538825,0.06060385,125.67,125.64,8.02067472]
[1744767539026,0.06060385,125.67,125.64,0.06117472]
[1744767539528,8.01900385,125.67,125.64,8.02067472]
[1744767540626,8.01900385,125.67,125.65,7.9592]
[1744767541132,0.06060385,125.67,125.64,0.06117472]
[1744767541629,7.9592,125.65,125.64,0.06117472]
[1744767542125,7.9592,125.65,125.59,31.3]
[1744767542333,31.3,125.66,125.56,49.147498]
[1744767542732,31.3,125.66,125.6,7.962]
[1744767543029,31.3,125.66,125.56,49.147498]
[1744767543231,0.05113956,125.62,125.61,7.9617]
[1744767543532,8.01866263,125.63,125.6,0.05341387]
[1744767543731,7.9611,125.62,125.6,8.01541387]
[1744767543932,0.05786263,125.63,125.6,8.01541387]
[1744767545127,0.05786263,125.63,125.61,7.9614]
[1744767545333,0.05786263,125.63,125.6,0.05341387]
[1744767545526,0.05786263,125.63,125.6,17.84689435]
[1744767547437,10.1391,125.68,125.62,17.79348048]
[1744767547830,10.1391,125.68,125.62,49.09348048]
[1744767548029,7.958,125.67,125.62,49.09348048]
[1744767548336,7.958,125.67,125.65,7.9591]
[1744767548636,0.05543441,125.67,125.65,8.01549869]
[1744767549036,8.01333441,125.67,125.65,8.01549869]
[1744767549232,0.05543441,125.67,125.65,0.05639869]
[1744767549635,7.9586,125.66,125.65,0.05639869]
[1744767550034,0.05543441,125.67,125.65,0.05639869]
[1744767550530,0.05543441,125.67,125.66,7.9586]
[1744767550736,0.05543441,125.67,125.65,0.05639869]
[1744767551139,0.05543441,125.67,125.65,8.01509869]
[1744767551429,0.05543441,125.67,125.65,0.05639869]
[1744767553444,0.05543441,125.67,125.66,7.9586]
[1744767554246,6.3019,125.73,125.7,7.9559]
[1744767554443,4.2577,125.73,125.7,7.9559]
[1744767554644,4.2577,125.73,125.71,7.9551]
[1744767554838,4.2577,125.73,125.66,20.00038048]
[1744767555043,7.9564,125.7,125.66,17.79348048]
[1744767555244,7.9564,125.7,125.68,0.05434942]
[1744767555443,0.05061282,125.71,125.68,0.05434942]
[1744767555655,8.00641282,125.71,125.68,0.05434942]
[1744767555839,8.00641282,125.71,125.68,8.01134942]
[1744767556447,7.9561,125.7,125.68,0.05434942]
[1744767557148,7.9567,125.69,125.68,0.05434942]
[1744767558048,7.9564,125.7,125.68,0.05434942]
[1744767558246,2.16941282,125.71,125.68,0.05434942]
[1744767558443,0.05061282,125.71,125.68,0.05434942]
[1744767558645,0.05061282,125.71,125.68,49.1278299]
[1744767559353,0.05061282,125.71,125.69,7.9567]
[1744767559552,0.05061282,125.71,125.68,31.33434942]
[1744767559745,0.05061282,125.71,125.68,49.1278299]
[1744767562152,0.05061282,125.71,125.7,7.956]
[1744767563755,0.05061282,125.71,125.69,7.9565]
[1744767563953,0.05061282,125.71,125.68,31.33434942]
[1744767564457,0.05061282,125.71,125.68,49.1278299]
[1744767565157,0.05061282,125.71,125.7,11.09966863]
[1744767565353,0.05061282,125.71,125.7,19.05566863]
[1744767565959,0.05061282,125.71,125.69,7.9565]
[1744767566160,0.05061282,125.71,125.68,42.43401805]
[1744767568462,0.05061282,125.71,125.7,7.956]
[1744767574071,0.05061282,125.71,125.69,7.9565]
[1744767574266,0.05061282,125.71,125.68,31.33434942]
[1744767574663,0.05061282,125.71,125.7,7.956]
[1744767578368,31.28,125.76,125.74,7.9535]
[1744767578567,31.28,125.76,125.7,11.09966863]
[1744767579068,31.28,125.76,125.72,7.9545]
[1744767579371,8.00620946,125.75,125.73,8.00895306]
[1744767580774,0.05300946,125.75,125.74,7.9535]
[1744767584875,31.28,125.8,125.74,42.35966863]
[1744767585375,35.4269,125.83,125.8,7.9493]
[1744767585879,35.48674195,125.83,125.8,8.00925659]
[1744767586181,35.48674195,125.83,125.81,7.949]
[1744767586575,35.48674195,125.83,125.8,0.05995659]
[1744767586777,43.43504195,125.83,125.8,8.00935659]
[1744767587279,35.48674195,125.83,125.8,8.00935659]
[1744767587581,7.9487,125.82,125.8,0.05995659]
[1744767587881,35.48674195,125.83,125.8,0.05995659]
[1744767588777,43.43494195,125.83,125.8,8.00935659]
[1744767589681,43.43494195,125.83,125.81,7.9489]
[1744767589876,0.05984195,125.83,125.8,0.05995659]
[1744767590076,0.05984195,125.83,125.8,11.15962522]
[1744767590380,0.05984195,125.83,125.82,7.9484]
[1744767592283,0.05984195,125.83,125.81,7.9488]
[1744767592582,0.05984195,125.83,125.8,31.31995659]
[1744767592973,8.00794195,125.83,125.81,7.9488]
[1744767593171,0.05984195,125.83,125.8,31.31995659]
[1744767593577,8.00794195,125.83,125.8,39.26915659]
[1744767594483,0.05984195,125.83,125.82,7.9484]
[1744767594680,0.05984195,125.83,125.82,19.04806863]
[1744767594879,2.1702,125.87,125.82,11.09966863]
[1744767595081,31.26,125.9,125.83,31.24]
[1744767595378,7.9443,125.89,125.85,7.9462]
[1744767595981,0.05900683,125.88,125.86,7.99931542]
[1744767596180,0.05900683,125.88,125.86,0.05341542]
[1744767596581,0.05900683,125.88,125.87,7.9453]
[1744767600386,0.05900683,125.88,125.86,11.15308405]
[1744767600387,42.33966863,125.95,125.86,42.39308405]
[1744767600586,46.37976863,125.95,125.86,42.33966863]
[1744767601587,0.05471318,125.92,125.89,0.05444909]
[1744767602085,0.05471318,125.92,125.9,7.9431]
[1744767602286,0.05471318,125.92,125.89,0.05444909]
[1744767602483,0.05471318,125.92,125.91,7.9428]
[1744767602789,7.99721318,125.92,125.89,0.05444909]
[1744767602991,7.99721318,125.92,125.89,7.99794909]
[1744767603287,0.05471318,125.92,125.89,0.05444909]
[1744767603485,0.05471318,125.92,125.9,11.09966863]
[1744767603681,0.05471318,125.92,125.91,7.9428]
[1744767604288,2.0441,125.97,125.96,7.9396]
[1744767604486,31.24,125.98,125.96,7.9396]
[1744767604784,39.1786,125.98,125.92,42.33966863]
[1744767604989,39.1786,125.98,125.95,7.9399]
[1744767605290,39.23120404,125.98,125.95,7.99817522]
[1744767606891,7.9391,125.97,125.95,7.99817522]
[1744767607195,31.29260404,125.98,125.95,7.99817522]
[1744767607393,31.29260404,125.98,125.96,7.9396]
[1744767607595,31.29260404,125.98,125.95,0.05827522]
[1744767608098,7.9393,125.97,125.95,7.99837522]
[1744767610001,0.05260404,125.98,125.95,0.05827522]
[1744767610002,7.9396,125.96,125.95,0.05827522]
[1744767610501,11.09966863,125.97,125.91,7.9424]
[1744767611501,0.05802911,125.95,125.93,0.0542706]
[1744767611997,42.37769774,125.95,125.88,11.09966863]
[1744767612194,11.09966863,125.89,125.8,42.31966863]
[1744767612397,31.22,125.88,125.8,42.31966863]
[1744767612697,33.3078,125.88,125.83,7.9475]
[1744767612997,7.9456,125.87,125.84,7.9467]
[1744767613297,0.05055557,125.87,125.84,8.0042885]
[1744767613499,0.05055557,125.87,125.84,0.0575885]
[1744767613691,11.1502242,125.87,125.84,0.0575885]
[1744767614193,7.9466,125.85,125.84,0.0575885]
[1744767614390,11.1502242,125.87,125.81,7.9489]
[1744767614597,11.09966863,125.87,125.81,7.9489]
[1744767615095,7.9478,125.84,125.81,7.9489]
[1744767615297,11.09966863,125.87,125.77,1.9384]
[1744767615298,42.31966863,125.85,125.77,31.22]
[1744767615496,0.05248868,125.82,125.8,0.06066998]
[1744767615993,8.00138868,125.82,125.8,0.06066998]
[1744767616195,0.05248868,125.82,125.8,11.16033861]
[1744767616498,33.3078,125.88,125.8,42.38033861]
[1744767616698,35.4862,125.88,125.8,42.31966863]
[1744767617105,7.9462,125.86,125.83,7.9475]
[1744767617597,0.05042778,125.86,125.83,0.05348386]
[1744767617802,7.947,125.85,125.83,0.05348386]
[1744767618004,0.05042778,125.86,125.83,0.05348386]
[1744767619504,31.22,125.85,125.78,11.09966863]
[1744767619704,7.9476,125.84,125.81,7.9488]
[1744767620404,8.00156162,125.84,125.81,8.0035013]
[1744767620703,0.05396162,125.84,125.81,0.0547013]
[1744767621707,0.05396162,125.84,125.71,15.9108]
[1744767621708,11.09966863,125.83,125.74,42.31966863]
[1744767621901,11.09966863,125.81,125.72,11.09966863]
[1744767622203,11.09966863,125.79,125.72,11.09966863]
[1744767622403,33.3117,125.8,125.72,11.09966863]
[1744767622604,0.05739212,125.77,125.75,0.06036379]
[1744767622801,31.27739212,125.77,125.71,31.22]
[1744767623806,7.9524,125.76,125.73,8.0111628]
[1744767624807,39.22939212,125.77,125.74,7.9532]
[1744767625005,39.22939212,125.77,125.73,0.0571628]
[1744767625212,31.27739212,125.77,125.73,0.0571628]
[1744767626012,7.9527,125.76,125.73,8.0111628]
[1744767627107,7.9535,125.75,125.73,0.0571628]
[1744767627311,31.27739212,125.77,125.73,0.0571628]
[1744767627813,7.9551,125.72,125.69,7.9564]
[1744767628011,7.9551,125.72,125.68,31.24]
[1744767628217,31.24,125.74,125.68,31.24]
[1744767628713,0.05317343,125.72,125.7,0.05641387]
[1744767629719,0.05317343,125.72,125.7,8.01241387]
[1744767631120,0.05317343,125.72,125.71,7.9554]
[1744767631619,0.05317343,125.72,125.7,0.05641387]
[1744767631821,0.05317343,125.72,125.7,8.01211387]
[1744767632117,0.05317343,125.72,125.7,0.05641387]
[1744767632719,0.05317343,125.72,125.7,8.01211387]
[1744767633019,0.05317343,125.72,125.7,0.05641387]
[1744767633620,0.05317343,125.72,125.71,7.9554]
[1744767636121,2.2008,125.79,125.71,56.95849327]
[1744767636321,2.0917,125.8,125.73,17.75849327]
[1744767636518,10.0417,125.8,125.73,17.75849327]
[1744767636718,2.0917,125.8,125.78,7.9506]
[1744767637015,2.14516378,125.8,125.78,8.00657173]
[1744767637718,10.09516378,125.8,125.78,0.05597173]
[1744767638321,10.09516378,125.8,125.78,8.00687173]
[1744767638621,0.05346378,125.8,125.78,0.05597173]
[1744767638817,0.05346378,125.8,125.79,7.9503]
[1744767639925,0.05346378,125.8,125.78,0.05597173]
[1744767640320,0.05346378,125.8,125.79,7.9503]
[1744767641524,0.05346378,125.8,125.78,0.05597173]
[1744767642023,0.05346378,125.8,125.79,7.9503]
[1744767643224,0.05346378,125.8,125.79,19.03352147]
[1744767644525,0.05346378,125.8,125.79,7.9503]
[1744767646330,0.05346378,125.8,125.79,19.03352147]
[1744767646630,0.05346378,125.8,125.79,7.9503]
[1744767651731,2.0741,125.86,125.82,7.9481]
[1744767651926,2.0741,125.86,125.79,11.08322147]
[1744767652431,2.0741,125.86,125.81,7.9489]
[1744767652833,7.9476,125.84,125.82,0.05440494]
[1744767653131,31.27937691,125.85,125.82,0.05440494]
[1744767653531,7.9472,125.84,125.82,0.05440494]
[1744767653731,31.27937691,125.85,125.82,0.05440494]
[1744767654031,7.9478,125.83,125.82,0.05440494]
[1744767658633,7.9512,125.78,125.76,7.9518]
[1744767658834,31.22,125.79,125.71,14.76042147]
[1744767659033,33.3578,125.78,125.71,11.08322147]
[1744767659233,33.3578,125.78,125.73,7.9541]
[1744767659537,33.3578,125.78,125.71,11.08322147]
[1744767659737,7.9534,125.75,125.73,0.05438916]
[1744767660138,0.05256424,125.76,125.73,0.05438916]
[1744767660337,31.22,125.75,125.73,0.05438916]
[1744767661640,7.9535,125.74,125.73,0.05438916]
[1744767662338,0.05256424,125.76,125.73,0.05438916]
[1744767662640,0.05256424,125.76,125.73,11.13761063]
[1744767662841,7.9494,125.81,125.75,11.08322147]
[1744767663141,31.24,125.82,125.75,42.32322147]
[1744767663439,11.08322147,125.81,125.73,11.08322147]
[1744767663941,0.05966981,125.78,125.76,0.05706515]
[1744767665246,7.9516,125.77,125.76,0.05706515]
[1744767667540,0.05966981,125.78,125.76,0.05706515]
[1744767668644,7.9516,125.77,125.76,0.05706515]
[1744767669044,42.32322147,125.77,125.69,31.24]
[1744767669244,11.08322147,125.75,125.67,11.08322147]
[1744767669439,31.24,125.74,125.66,31.24]
[1744767669940,31.24,125.74,125.67,11.08322147]
[1744767670244,8.01063418,125.72,125.69,8.01479282]
[1744767670442,0.05533418,125.72,125.69,0.05849282]
[1744767671045,7.956,125.7,125.69,0.05849282]
[1744767673550,7.9587,125.66,125.63,42.32322147]
[1744767673754,2.0345,125.7,125.63,42.32322147]
[1744767673945,2.0345,125.7,125.65,11.08322147]
[1744767674145,9.991,125.7,125.67,7.9576]
[1744767674345,2.0345,125.7,125.67,7.9576]
[1744767674547,0.05189501,125.7,125.67,11.14206752]
[1744767674952,0.05189501,125.7,125.69,19.03952147]
[1744767679356,2.1114,125.78,125.69,62.82153389]
[1744767679656,2.1114,125.78,125.75,11.08322147]
[1744767679657,7.9513,125.78,125.75,11.08322147]
[1744767680050,4.2286,125.81,125.75,11.08322147]
[1744767680256,0.05849419,125.79,125.73,7.9541]
[1744767680557,42.32322147,125.8,125.73,7.9541]
[1744767681256,7.9528,125.76,125.75,0.05118432]
[1744767682456,0.05622546,125.78,125.76,7.952]
[1744767683057,8.00752546,125.78,125.75,8.00368432]
[1744767683258,31.27622546,125.78,125.75,0.05118432]
[1744767683460,7.9522,125.76,125.75,0.05118432]